fUST/lending_fUST_20240412
["ID","MTS","AMOUNT","RATE_DAILY","PERIOD"]
[322168985,1712862642050,-500.0,0.00034558,14]
[322168987,1712862642062,-500.0,0.00034558,14]
[322168989,1712862642072,-976.91,0.00034558,14]
[322168992,1712862642082,-2133.43,0.00034558,14]
[322168994,1712862642092,-1776.77,0.00034558,14]
[322168995,1712862642104,-253.15578205,0.00034558,2]
[322168998,1712862642116,-918.23,0.00034558,14]
[322168999,1712862642126,-151.0,0.00034558,2]
[322169001,1712862642137,-508.24,0.00034558,14]
[322169003,1712862642147,-1933.25,0.00034558,14]
[322169005,1712862642159,-500.0,0.00034558,14]
[322169007,1712862642169,-500.0,0.00034558,14]
[322169009,1712862642182,-500.0,0.00034558,14]
[322169012,1712862642193,-500.0,0.00034558,14]
[322169014,1712862642205,-500.0,0.00034558,14]
[322169015,1712862642218,-20335.7,0.00034558,14]
[322169017,1712862642232,-500.0,0.00034558,14]
[322169019,1712862642244,-500.0,0.00034558,14]
[322169021,1712862642257,-500.0,0.00034558,14]
[322169023,1712862642267,-395.377172,0.00034558,2]
[322169025,1712862642279,-4064.31,0.00034558,14]
[322169027,1712862642291,-500.0,0.00034558,14]
[322169029,1712862642301,-1237.81,0.00034558,14]
[322169031,1712862642318,-395.377172,0.00034558,2]
[322169033,1712862642330,-505.25227763,0.00034558,14]
[322169035,1712862642341,-500.0,0.00034558,14]
[322169037,1712862642349,-151.0,0.00034558,2]
[322169039,1712862642358,-263.977886,0.00034558,2]
[322169041,1712862642367,-500.0,0.00034558,14]
[322169043,1712862642376,-500.0,0.00034558,14]
[322169045,1712862642385,-503.00362862,0.00034558,14]
[322169048,1712862642395,-369.48286751,0.00034558,14]
[322169050,1712862642405,-151.0,0.00034558,2]
[322169051,1712862642416,-151.0,0.00034558,2]
[322169054,1712862642430,-500.0,0.00034558,14]
[322169055,1712862642441,-500.0,0.00034558,14]
[322169058,1712862642452,-3203.12,0.00034558,14]
[322169059,1712862642463,-961.23,0.00034558,14]
[322169061,1712862642473,-500.0,0.00034558,14]
[322169064,1712862642483,-1644.13,0.00034558,14]
[322169065,1712862642495,-500.0,0.00034558,14]
[322169067,1712862642504,-500.0,0.00034632,14]
[322169069,1712862642513,-507.34,0.00034632,14]
[322169071,1712862642522,-315.67070647,0.00034632,14]
[322169084,1712862642627,-370.26929353,0.00034632,14]
[322169086,1712862642636,-752.5,0.00034632,14]
[322169087,1712862642645,-151.0,0.00034632,2]
[322169089,1712862642654,-2390.29,0.00034632,14]
[322169091,1712862642663,-500.0,0.00034632,14]
[322169094,1712862642672,-500.0,0.00034632,14]
[322169097,1712862642681,-500.0,0.00034632,14]
[322169100,1712862642690,-222.87734583,0.00034678,7]
[322169103,1712862642699,-151.21781736,0.00034731,7]
[322169106,1712862642708,-2564.57584738,0.00034732,2]
[322169108,1712862642717,-500.0,0.00034794,14]
[322169110,1712862642726,-505.90336664,0.00034794,14]
[322169112,1712862642735,-500.0,0.00034794,14]
[322169114,1712862642744,-2680.15,0.00034794,2]
[322169116,1712862642753,-500.0,0.00034794,14]
[322169118,1712862642763,-500.0,0.00034794,14]
[322169120,1712862642772,-500.0,0.00034794,14]
[322169122,1712862642781,-500.0,0.00034794,14]
[322169124,1712862642789,-501.6139725,0.00034794,14]
[322169127,1712862642800,-500.0,0.00034794,14]
[322169130,1712862642811,-500.0,0.00034794,14]
[322169132,1712862642821,-5502.05,0.00034794,14]
[322169134,1712862642831,-151.0,0.00034794,2]
[322169136,1712862642840,-1366.75,0.00034794,14]
[322169138,1712862642849,-560.73,0.00034794,14]
[322169140,1712862642858,-1254.07,0.00034794,14]
[322169142,1712862642867,-776.7,0.00034794,14]
[322169144,1712862642876,-1134.94,0.00034794,14]
[322169146,1712862642885,-395.377172,0.00034794,2]
[322169148,1712862642894,-395.377172,0.00034794,2]
[322169150,1712862642903,-666.23,0.00034794,14]
[322169152,1712862642912,-1261.33,0.00034794,14]
[322169154,1712862642921,-151.0,0.00034794,2]
[322169155,1712862642930,-500.0,0.00034794,14]
[322169157,1712862642940,-1591.08,0.00034794,14]
[322169159,1712862642949,-6687.11,0.00034794,14]
[322169169,1712862643034,-1831.84,0.00034794,14]
[322169171,1712862643043,-500.0,0.00034832,14]
[322169173,1712862643052,-526.82,0.00034832,14]
[322169175,1712862643064,-520.80136545,0.00034832,14]
[322169177,1712862643073,-500.0,0.00034832,14]
[322169179,1712862643082,-500.0,0.00034832,14]
[322169181,1712862643090,-339.91906213,0.00034832,14]
[322169183,1712862643099,-270.35237407,0.00034832,14]
[322169185,1712862643108,-500.0,0.00034832,14]
[322169187,1712862643118,-500.0,0.00034832,14]
[322169189,1712862643128,-500.0,0.00034832,14]
[322169191,1712862643138,-500.0,0.00034832,14]
[322169193,1712862643147,-300.0,0.00034832,7]
[322169195,1712862643156,-500.0,0.00034832,14]
[322169197,1712862643166,-500.0,0.00034832,14]
[322169199,1712862643175,-500.0,0.00034832,14]
[322169201,1712862643183,-500.0,0.00034832,14]
[322169203,1712862643192,-500.0,0.00034832,14]
[322169205,1712862643201,-500.0,0.00034832,14]
[322169206,1712862643210,-2025.57,0.00034832,14]
[322169208,1712862643222,-500.0,0.00034832,14]
[322169210,1712862643233,-561.2,0.00034832,14]
[322169212,1712862643242,-500.0,0.00034832,14]
[322169214,1712862643251,-500.0,0.00034832,14]
[322169216,1712862643262,-500.0,0.00034832,14]
[322169218,1712862643271,-976.91,0.00034832,14]
[322169220,1712862643282,-2133.43,0.00034832,14]
[322169222,1712862643290,-1776.77,0.00034832,14]
[322169224,1712862643300,-918.23,0.00034832,14]
[322169226,1712862643310,-508.24,0.00034832,14]
[322169228,1712862643318,-1933.25,0.00034832,14]
[322169230,1712862643327,-500.0,0.00034832,14]
[322169232,1712862643335,-500.0,0.00034832,14]
[322169234,1712862643344,-500.0,0.00034832,14]
[322169236,1712862643353,-500.0,0.00034832,14]
[322169238,1712862643362,-500.0,0.00034832,14]
[322169240,1712862643371,-20335.7,0.00034832,14]
[322169241,1712862643380,-500.0,0.00034832,14]
[322169243,1712862643390,-500.0,0.00034832,14]
[322169245,1712862643401,-500.0,0.00034832,14]
[322169247,1712862643411,-395.377172,0.00034832,2]
[322169249,1712862643420,-4064.31,0.00034832,14]
[322169251,1712862643429,-500.0,0.00034832,14]
[322169253,1712862643438,-1237.81,0.00034832,14]
[322169255,1712862643447,-395.377172,0.00034832,2]
[322169257,1712862643457,-500.0,0.00034832,14]
[322169259,1712862643467,-500.0,0.00034832,14]
[322169261,1712862643477,-500.0,0.00034832,14]
[322169264,1712862643486,-500.0,0.00034832,14]
[322169267,1712862643495,-2216.46891711,0.00034832,14]
[322169290,1712862643704,-986.65108289,0.00034832,14]
[322169292,1712862643713,-961.23,0.00034832,14]
[322169294,1712862643722,-500.0,0.00034832,14]
[322169296,1712862643731,-1644.13,0.00034832,14]
[322169298,1712862643740,-500.0,0.00034832,14]
[322169300,1712862643749,-153.0,0.00034841,2]
[322169302,1712862643758,-62111.93956461,0.0003488,120]
[322169304,1712862643767,-3323.33707912,0.00034905,4]
[322169306,1712862643777,-3588.4191585,0.00034905,4]
[322169308,1712862643786,-500.0,0.00034906,14]
[322169310,1712862643795,-507.34,0.00034906,14]
[322169312,1712862643804,-685.94,0.00034906,14]
[322169314,1712862643818,-752.5,0.00034906,14]
[322169316,1712862643828,-151.0,0.00034906,2]
[322169318,1712862643838,-2390.29,0.00034906,14]
[322169320,1712862643847,-504.6097672,0.00034906,14]
[322169322,1712862643856,-509.72973434,0.00034906,14]
[322169324,1712862643865,-500.0,0.00034906,14]
[322169326,1712862643874,-151.21781736,0.00034908,7]
[322169328,1712862643883,-151.21781736,0.00034987,7]
[322169330,1712862643892,-151.0,0.00035,2]
[322169332,1712862643901,-154.86062544,0.00035,4]
[322169333,1712862643911,-151.21781736,0.0003501,7]
[322169335,1712862643920,-151.21781736,0.00035015,7]
[322169337,1712862643929,-500.0,0.00035068,14]
[322169339,1712862643938,-242.09788264,0.00035068,14]
[322169342,1712862643950,-257.90211736,0.00035068,14]
[322169344,1712862643959,-405.01651405,0.00035068,2]
[322169346,1712862643970,-1440.11481461,0.00035068,2]
[322169577,1712862646495,-500.0,0.00034284,14]
[322169579,1712862646504,-500.0,0.00034558,14]
[322169580,1712862646513,-500.0,0.00034832,14]
[322169582,1712862646523,-835.01867134,0.00035068,2]
[322169584,1712862646533,-500.0,0.00035068,14]
[322169587,1712862646544,-500.0,0.00035068,14]
[322169588,1712862646554,-538.61504777,0.00035068,14]
[322169590,1712862646567,-509.25164329,0.00035068,14]
[322169592,1712862646577,-500.0,0.00035068,14]
[322169594,1712862646587,-500.0,0.00035068,14]
[322169597,1712862646596,-5502.05,0.00035068,14]
[322169598,1712862646605,-1366.75,0.00035068,14]
[322169600,1712862646615,-560.73,0.00035068,14]
[322169602,1712862646625,-1254.07,0.00035068,14]
[322169605,1712862646635,-776.7,0.00035068,14]
[322169607,1712862646644,-1134.94,0.00035068,14]
[322169608,1712862646654,-395.377172,0.00035068,2]
[322169610,1712862646664,-395.377172,0.00035068,2]
[322169612,1712862646673,-666.23,0.00035068,14]
[322169614,1712862646682,-1261.33,0.00035068,14]
[322169616,1712862646692,-500.0,0.00035068,14]
[322169618,1712862646701,-1042.6773436,0.00035068,14]
[322169620,1712862646714,-548.4026564,0.00035068,14]
[322169622,1712862646724,-6687.11,0.00035068,14]
[322169624,1712862646734,-1831.84,0.00035068,14]
[322169626,1712862646743,-500.0,0.00035106,14]
[322169628,1712862646753,-526.82,0.00035106,14]
[322169630,1712862646763,-500.0,0.00035106,14]
[322169632,1712862646773,-464.93968069,0.00035106,14]
[322169634,1712862646782,-500.0,0.00035106,14]
[322169636,1712862646792,-500.0,0.00035106,14]
[322169638,1712862646802,-500.0,0.00035106,14]
[322169640,1712862646813,-500.0,0.00035106,14]
[322169642,1712862646824,-300.0,0.00035106,7]
[322169644,1712862646834,-500.0,0.00035106,14]
[322169653,1712862646906,-500.0,0.00035106,14]
[322169655,1712862646928,-500.0,0.00035106,14]
[322169657,1712862646939,-500.0,0.00035106,14]
[322169659,1712862646948,-500.0,0.00035106,14]
[322169661,1712862646958,-500.0,0.00035106,14]
[322169663,1712862646968,-513.8888827,0.00035106,14]
[322169665,1712862646978,-561.2,0.00035106,14]
[322169667,1712862646989,-500.0,0.00035106,14]
[322169669,1712862646999,-500.0,0.00035106,14]
[322169671,1712862647010,-500.0,0.00035106,14]
[322169672,1712862647020,-976.91,0.00035106,14]
[322169673,1712862647029,-2133.43,0.00035106,14]
[322169674,1712862647039,-1776.77,0.00035106,14]
[322169675,1712862647049,-918.23,0.00035106,14]
[322169676,1712862647060,-508.24,0.00035106,14]
[322169677,1712862647069,-1933.25,0.00035106,14]
[322169678,1712862647078,-411.00775806,0.00035106,14]
[322170909,1712862686354,2964.010716,0.0003,5]
[322170910,1712862686375,2587.76858111,0.0003,5]
[322170921,1712863000586,8720.77,0.00024,2]
[322170924,1712863032213,423.4073234,0.00024,2]
[322170928,1712863044710,155.52933939,0.00024,2]
[322170931,1712863310596,197.14312846,0.00023952,2]
[322170934,1712863634121,-3292.64736883,0.00027723,2]
[322170935,1712863634143,-2122.20004462,0.00027724,2]
[322170936,1712863634164,-166.666666,0.00027728,2]
[322170937,1712863634186,-300.0,0.00027967,2]
[322170938,1712863634209,-187.0,0.00027967,2]
[322170939,1712863634233,-1259.61,0.00027969,2]
[322170940,1712863634253,-264.5494253,0.00027969,2]
[322170941,1712863635108,-988.88737187,0.00027969,2]
[322170944,1712863745316,-165.38884833,0.00027868,2]
[322170945,1712863745338,-443.18218426,0.00027968,2]
[322170946,1712863745358,-2398.0462141,0.00027968,2]
[322170947,1712863745380,-300.0,0.00027968,2]
[322170948,1712863745401,-2985.25320283,0.00027969,2]
[322170949,1712863745421,-500.0,0.00027969,2]
[322170950,1712863745443,-1082.01,0.00027969,2]
[322170951,1712863745465,-992.81,0.00027969,2]
[322170952,1712863745486,-947.84,0.00027969,2]
[322170953,1712863745507,-527.44,0.00027969,2]
[322170954,1712863745528,-998.55,0.00027969,2]
[322170955,1712863745549,-59008.25304668,0.00027969,2]
[322170956,1712863745575,-24900.0,0.0002797,2]
[322170957,1712863745596,-1259.61,0.00028243,2]
[322170958,1712863745620,-4238.69,0.00028243,2]
[322170959,1712863745643,-500.0,0.00028243,2]
[322170960,1712863745666,-1082.01,0.00028243,2]
[322170961,1712863745689,-992.81,0.00028243,2]
[322170962,1712863745711,-947.84,0.00028243,2]
[322170963,1712863745732,-527.44,0.00028243,2]
[322170964,1712863745752,-998.55,0.00028243,2]
[322170965,1712863745773,-176.7106089,0.00028319,2]
[322170966,1712863745794,-1259.61,0.00028516,2]
[322170967,1712863745818,-4238.69,0.00028516,2]
[322170968,1712863745839,-500.0,0.00028516,2]
[322170969,1712863745859,-1082.01,0.00028516,2]
[322170970,1712863745880,-992.81,0.00028516,2]
[322170971,1712863745901,-947.84,0.00028516,2]
[322170972,1712863745924,-527.44,0.00028516,2]
[322170973,1712863745945,-1259.61,0.0002879,2]
[322170974,1712863745966,-4238.69,0.0002879,2]
[322170975,1712863745991,-500.0,0.0002879,2]
[322170976,1712863746012,-1082.01,0.0002879,2]
[322170977,1712863746032,-992.81,0.0002879,2]
[322170978,1712863746053,-947.84,0.0002879,2]
[322170979,1712863746073,-527.44,0.0002879,2]
[322170980,1712863746093,-336.05873986,0.00029063,2]
[322170981,1712863746114,-264.96693908,0.00029063,2]
[322170982,1712863746136,-1259.61,0.00029064,2]
[322170983,1712863746157,-4238.69,0.00029064,2]
[322170984,1712863746176,-500.0,0.00029064,2]
[322170985,1712863746197,-1082.01,0.00029064,2]
[322170986,1712863746219,-992.81,0.00029064,2]
[322170987,1712863746239,-947.84,0.00029064,2]
[322170988,1712863746259,-527.44,0.00029064,2]
[322170989,1712863746279,-165.38884831,0.00029158,2]
[322170990,1712863746299,-1259.61,0.00029338,2]
[322170991,1712863746320,-4238.69,0.00029338,2]
[322170992,1712863746340,-500.0,0.00029338,2]
[322170993,1712863746360,-1082.01,0.00029338,2]
[322170995,1712863746480,-992.81,0.00029338,2]
[322170996,1712863746500,-947.84,0.00029338,2]
[322170997,1712863746520,-527.44,0.00029338,2]
[322170998,1712863746540,-1259.61,0.00029612,2]
[322170999,1712863746563,-4238.69,0.00029612,2]
[322171000,1712863746583,-500.0,0.00029612,2]
[322171001,1712863746605,-1082.01,0.00029612,2]
[322171002,1712863746627,-992.81,0.00029612,2]
[322171003,1712863746653,-947.84,0.00029612,2]
[322171004,1712863746675,-527.44,0.00029612,2]
[322171005,1712863746698,-1259.61,0.00029886,2]
[322171006,1712863746723,-4238.69,0.00029886,2]
[322171007,1712863746744,-500.0,0.00029886,2]
[322171008,1712863746764,-1082.01,0.00029886,2]
[322171009,1712863746784,-992.81,0.00029886,2]
[322171010,1712863746806,-947.84,0.00029886,2]
[322171011,1712863746827,-527.44,0.00029886,2]
[322171012,1712863746849,-500.0,0.00029896,2]
[322171013,1712863746869,-1856.77,0.00029896,2]
[322171014,1712863746890,-513.31933967,0.00029896,2]
[322171015,1712863746910,-500.0,0.00029896,2]
[322171016,1712863746930,-1691.59,0.00029896,2]
[322171017,1712863746949,-548.02245487,0.00029998,2]
[322171018,1712863746969,-435.73017158,0.00029998,2]
[322171019,1712863746988,-500.0,0.00029998,2]
[322171020,1712863747007,-500.0,0.00029998,2]
[322171021,1712863747026,-500.0,0.00029998,2]
[322171022,1712863747047,-500.0,0.00029998,2]
[322171023,1712863747066,-500.0,0.00029998,2]
[322171024,1712863747086,-500.0,0.00029998,2]
[322171025,1712863747107,-505.22713302,0.00029998,2]
[322171026,1712863747126,-500.0,0.00029998,2]
[322171027,1712863747145,-500.0,0.00029998,2]
[322171028,1712863747164,-500.0,0.00029998,2]
[322171029,1712863747183,-500.0,0.00029998,2]
[322171030,1712863747202,-511.17542956,0.00029998,2]
[322171031,1712863747223,-500.0,0.00029998,2]
[322171032,1712863747244,-500.0,0.00029998,2]
[322171033,1712863747264,-5293.97,0.00029998,2]
[322171034,1712863747284,-1450.21,0.00029998,2]
[322171035,1712863747304,-500.0,0.00029998,2]
[322171036,1712863747323,-500.0,0.00029998,2]
[322171037,1712863747344,-1554.68,0.00029998,2]
[322171038,1712863747363,-897.27,0.00029998,2]
[322171039,1712863747383,-1866.75,0.00029998,2]
[322171040,1712863747403,-259.92770034,0.00029998,2]
[322171041,1712863747423,-500.0,0.00029998,2]
[322171042,1712863747445,-17816.84,0.00029998,2]
[322171043,1712863747465,-500.0,0.00029998,2]
[322171044,1712863747485,-500.0,0.00029998,2]
[322171045,1712863747504,-693.05554824,0.00029999,2]
[322171046,1712863747524,-500.0,0.00029999,2]
[322171047,1712863747544,-549.51197242,0.00029999,2]
[322171048,1712863747569,-500.0,0.00029999,2]
[322171049,1712863747588,-500.0,0.00029999,2]
[322171050,1712863747611,-500.0,0.00029999,2]
[322171051,1712863747634,-500.0,0.00029999,2]
[322171052,1712863747657,-503.73532672,0.00029999,2]
[322171053,1712863747679,-500.0,0.00029999,2]
[322171054,1712863747699,-500.0,0.00029999,2]
[322171055,1712863747724,-500.0,0.00029999,2]
[322171056,1712863747744,-500.0,0.00029999,2]
[322171057,1712863747767,-803.45,0.00029999,2]
[322171058,1712863747788,-500.0,0.00029999,2]
[322171059,1712863747809,-500.0,0.00029999,2]
[322171060,1712863747831,-500.0,0.00029999,2]
[322171061,1712863747851,-500.0,0.00029999,2]
[322171062,1712863747872,-502.78102773,0.00029999,2]
[322171063,1712863747893,-500.0,0.00029999,2]
[322171064,1712863747915,-500.0,0.00029999,2]
[322171065,1712863747936,-500.0,0.00029999,2]
[322171066,1712863747955,-3556.27,0.00029999,2]
[322171067,1712863747977,-1038.98,0.00029999,2]
[322171068,1712863747997,-500.0,0.00029999,2]
[322171069,1712863748018,-1083.08,0.00029999,2]
[322171070,1712863748038,-500.0,0.00029999,2]
[322171071,1712863748058,-384.91072681,0.00029999,2]
[322171072,1712863748078,-2802.73,0.00029999,2]
[322171073,1712863748098,-500.0,0.00029999,2]
[322171074,1712863748119,-500.0,0.00029999,2]
[322171075,1712863748143,-7755.52,0.00029999,2]
[322171076,1712863748164,-500.0,0.00029999,2]
[322171078,1712863748185,-503.10849408,0.00029999,2]
[322171080,1712863748205,-500.0,0.00029999,2]
[322171082,1712863748227,-500.0,0.00029999,2]
[322171084,1712863748247,-500.0,0.00029999,2]
[322171086,1712863748269,-500.0,0.00029999,2]
[322171088,1712863748289,-500.0,0.00029999,2]
[322171090,1712863748309,-500.0,0.00029999,2]
[322171092,1712863748329,-3537.13,0.00029999,2]
[322171094,1712863748348,-500.0,0.00029999,2]
[322171096,1712863748369,-500.0,0.00029999,2]
[322171098,1712863748389,-3076.46,0.00029999,2]
[322171103,1712863748521,-1793.11,0.00029999,2]
[322171104,1712863748542,-500.0,0.00029999,2]
[322171105,1712863748567,-500.0,0.00029999,2]
[322171106,1712863748589,-500.0,0.00029999,2]
[322171107,1712863748611,-661.42,0.00029999,2]
[322171108,1712863748632,-2710.43334707,0.0003,5]
[322171109,1712863750153,-998.55,0.00028516,2]
[322171110,1712863750177,-998.55,0.0002879,2]
[322171111,1712863750198,-998.55,0.00029064,2]
[322171112,1712863750223,-998.55,0.00029338,2]
[322171113,1712863750244,-998.55,0.00029612,2]
[322171114,1712863750265,-998.55,0.00029886,2]
[322171115,1712863750284,-91748.37642582,0.0003,5]
[322171116,1712863750305,-295.93193325,0.0003,4]
[322171117,1712863750324,-400.0,0.00030137,2]
[322171118,1712863750359,-1259.61,0.0003016,7]
[322171119,1712863750380,-4238.69,0.0003016,7]
[322171120,1712863750400,-500.0,0.0003016,7]
[322171121,1712863750422,-1082.01,0.0003016,7]
[322171122,1712863750443,-992.81,0.0003016,7]
[322171123,1712863750466,-947.84,0.0003016,7]
[322171124,1712863750489,-527.44,0.0003016,7]
[322171125,1712863750510,-998.55,0.0003016,7]
[322171126,1712863750531,-500.0,0.0003017,7]
[322171127,1712863750558,-1856.77,0.0003017,7]
[322171128,1712863750582,-500.0,0.0003017,7]
[322171129,1712863750606,-1691.59,0.0003017,7]
[322171130,1712863750629,-500.0,0.00030272,7]
[322171131,1712863750654,-500.0,0.00030272,7]
[322171132,1712863750677,-500.0,0.00030272,7]
[322171133,1712863750701,-500.0,0.00030272,7]
[322171134,1712863750726,-500.0,0.00030272,7]
[322171135,1712863750748,-500.0,0.00030272,7]
[322171136,1712863750772,-500.0,0.00030272,7]
[322171137,1712863750793,-5293.97,0.00030272,7]
[322171138,1712863750815,-1450.21,0.00030272,7]
[322171139,1712863750839,-500.0,0.00030272,7]
[322171140,1712863750860,-500.0,0.00030272,7]
[322171141,1712863750884,-1554.68,0.00030272,7]
[322171142,1712863750907,-897.27,0.00030272,7]
[322171143,1712863750928,-1866.75,0.00030272,7]
[322171144,1712863750949,-500.0,0.00030272,7]
[322171145,1712863750972,-17816.84,0.00030272,7]
[322171146,1712863750993,-500.0,0.00030272,7]
[322171147,1712863751016,-500.0,0.00030272,7]
[322171148,1712863751037,-295.42346276,0.00030273,7]
[322171149,1712863751058,-500.0,0.00030273,7]
[322171150,1712863751081,-500.0,0.00030273,7]
[322171151,1712863751105,-500.0,0.00030273,7]
[322171152,1712863751127,-500.0,0.00030273,7]
[322171153,1712863751148,-500.0,0.00030273,7]
[322171154,1712863751170,-803.45,0.00030273,7]
[322171155,1712863751191,-500.0,0.00030273,7]
[322171156,1712863751213,-500.0,0.00030273,7]
[322171157,1712863751236,-500.0,0.00030273,7]
[322171158,1712863751259,-500.0,0.00030273,7]
[322171159,1712863751281,-500.0,0.00030273,7]
[322171160,1712863751303,-500.0,0.00030273,7]
[322171161,1712863751323,-500.0,0.00030273,7]
[322171162,1712863751344,-3556.27,0.00030273,7]
[322171163,1712863751366,-1038.98,0.00030273,7]
[322171164,1712863751387,-500.0,0.00030273,7]
[322171165,1712863751518,-1083.08,0.00030273,7]
[322171166,1712863751537,-607.49812115,0.00030273,7]
[322171167,1712863751562,-2802.73,0.00030273,7]
[322171168,1712863751584,-592.26412934,0.00030273,7]
[322171169,1712863751607,-593.83444332,0.00030273,7]
[322171170,1712863751630,-7755.52,0.00030273,7]
[322171171,1712863751651,-500.0,0.00030273,7]
[322171172,1712863751672,-151.0,0.00030273,2]
[322171173,1712863751695,-500.0,0.00030273,7]
[322171174,1712863751720,-500.0,0.00030273,7]
[322171175,1712863751742,-494.79730632,0.00030273,7]
[322171176,1712863751764,-427.75441593,0.00030273,7]
[322171177,1712863751784,-295.04346083,0.00030273,7]
[322171178,1712863751806,-500.0,0.00030273,7]
[322171179,1712863751827,-3537.13,0.00030273,7]
[322171180,1712863751848,-500.0,0.00030273,7]
[322171181,1712863751869,-500.0,0.00030273,7]
[322171182,1712863751889,-3076.46,0.00030273,7]
[322171183,1712863751909,-1793.11,0.00030273,7]
[322171184,1712863751928,-500.0,0.00030273,7]
[322171185,1712863751948,-300.1343516,0.00030273,7]
[322171186,1712863751968,-500.0,0.00030273,7]
[322171187,1712863751988,-156.630188,0.00030273,2]
[322171188,1712863752009,-661.42,0.00030273,7]
[322171189,1712863752028,-156.630188,0.00030273,2]
[322171190,1712863752048,-1259.61,0.00030434,7]
[322171191,1712863752069,-4238.69,0.00030434,7]
[322171192,1712863752089,-68.06686616,0.00030434,7]
[322171194,1712863766137,-404.66382334,0.00028172,2]
[322171195,1712863766157,-2104.0575218,0.00028746,2]
[322171196,1712863774326,500.0,0.00027969,2]
[322171197,1712863774604,500.0,0.00028243,2]
[322171198,1712863774870,500.0,0.00028516,2]
[322171199,1712863775154,500.0,0.0002879,2]
[322171200,1712863775761,183.3232584,0.00029064,2]
[322171201,1712863783403,896.21250346,0.00029391,2]
[322171220,1712863832440,-310.0,0.00027967,2]
[322171301,1712863838861,-424.77,0.00027967,2]
[322171304,1712863838873,-4852.8,0.00027969,2]
[322171306,1712863838886,-1329.35,0.00027969,2]
[322171308,1712863838900,-1702.04,0.00027969,2]
[322171311,1712863838911,-500.0,0.00027969,2]
[322171313,1712863838922,-734.77,0.00028241,2]
[322171315,1712863838937,-4852.8,0.00028243,2]
[322171318,1712863838949,-1329.35,0.00028243,2]
[322171320,1712863838963,-1702.04,0.00028243,2]
[322171322,1712863838974,-500.0,0.00028243,2]
[322171324,1712863838985,-734.77,0.00028515,2]
[322171327,1712863838999,-4852.8,0.00028516,2]
[322171329,1712863839011,-1329.35,0.00028516,2]
[322171331,1712863839023,-1702.04,0.00028516,2]
[322171334,1712863839038,-500.0,0.00028516,2]
[322171336,1712863839054,-734.77,0.00028789,2]
[322171339,1712863839067,-4852.8,0.0002879,2]
[322171341,1712863839079,-1329.35,0.0002879,2]
[322171343,1712863839090,-1702.04,0.0002879,2]
[322171345,1712863839100,-500.0,0.0002879,2]
[322171347,1712863839111,-734.77,0.00029063,2]
[322171349,1712863839124,-4852.8,0.00029064,2]
[322171352,1712863839136,-1329.35,0.00029064,2]
[322171354,1712863839149,-1702.04,0.00029064,2]
[322171356,1712863839162,-500.0,0.00029064,2]
[322171359,1712863839174,-734.77,0.00029337,2]
[322171361,1712863839184,-4852.8,0.00029338,2]
[322171363,1712863839195,-1329.35,0.00029338,2]
[322171365,1712863839206,-1702.04,0.00029338,2]
[322171367,1712863839218,-500.0,0.00029338,2]
[322171369,1712863839230,-300.0,0.0002939,2]
[322171372,1712863839242,-24003.78749654,0.00029391,2]
[322171374,1712863839253,-734.77,0.00029611,2]